[Event "Romanian Championship Open 2025"]
[Site "Craiova"]
[Date "2025.02.21"]
[Round "7.8"]
[White "Ilinca, Felix-Antonio"]
[Black "Negrean, Andrei"]
[Result "1-0"]
[Annotator "RC"]
[ECO "A30"]
[WhiteElo "2412"]
[BlackElo "2224"]
[PlyCount "119"]
[EventDate "2025.02.12"]
[EventType "swiss"]
[EventCountry "ROU"]
[SourceTitle "playchess.com"]
[Source "ChessBase"]
[SourceQuality "1"]
[TimeControl "40/5400+30:900+30"]

1. Nf3 {[%emt 0:00:12]} c5 {[%emt 0:00:16]} 2. c4 {[%emt 0:00:33]} Nf6 {[%emt 0:00:19]} 3. Nc3 {[%emt 0:00:29]} e6 {[%emt 0:00:26]} 4. g3 {[%emt 0:00:52]} b6 {[%emt 0:00:17]} 5. Bg2 {[%emt 0:00:34]} Bb7 {[%emt 0:00:14]} 6. O-O {[%emt 0:00:28]} a6 {[%emt 0:01:13]} 7. Re1 {[%emt 0:00:55]} d6 {[%emt 0:01:38]} 8. e4 {[%emt 0:00:55]} Be7 {[%emt 0:01:05]} 9. d4 {[%emt 0:00:49]} cxd4 {[%emt 0:00:10]} 10. Nxd4 {[%emt 0:00:25]} Qc7 {[%emt 0:00:46]} 11. Be3 {[%emt 0:00:51]} Nbd7 {[%emt 0:05:31]} 12. Rc1 {[%emt 0:05:17]} O-O {[%emt 0:07:38]} 13. f4 {[%emt 0:02:04]} Rfe8 {[%emt 0:15:15]} 14. g4 {[%emt 0:11:36]} g6 {[%emt 0:11:57]} 15. g5 {[%emt 0:10:07]} Nh5 {[%emt 0:01:40]} 16. f5 {[%emt 0:08:29]} Bf8 {[%emt 0:09:47]} 17. b3 {[%emt 0:05:20]} Ne5 {[%emt 0:05:13]} 18. f6 {[%emt 0:04:10]} Rad8 {[%emt 0:04:46]} 19. Na4 {[%emt 0:07:21]} Nd7 {[%emt 0:06:49]} 20. Rc2 {[%emt 0:04:19]} Qb8 {[%emt 0:04:52]} 21. Nc3 {[%emt 0:07:07]} Qa8 {[%emt 0:03:20]} 22. Bc1 {[%emt 0:04:10]} Nc5 {[%emt 0:04:29]} 23. Rce2 {[%emt 0:02:34]} e5 {[%emt 0:04:12]} 24. Nf3 {[%emt 0:05:32]} b5 {[%emt 0:04:45]} 25. Nd5 {[%emt 0:00:32]} Ne6 {[%emt 0:00:40]} 26. Be3 {[%emt 0:02:40]} bxc4 {[%emt 0:01:04]} 27. bxc4 {[%emt 0:00:12]} Nef4 {[%emt 0:02:27]} 28. Rb2 {[%emt 0:03:27]} Qc8 {[%emt 0:00:56]} 29. Kh1 {[%emt 0:02:53]} Bxd5 {[%emt 0:01:07]} 30. cxd5 {[%emt 0:00:22]} Qg4 {[%emt 0:00:34]} 31. Bf1 {[%emt 0:03:06]} h6 {[%emt 0:00:29]} 32. Bxa6 {[%emt 0:01:13]} Nh3 {[%emt 0:01:46]} 33. Bd3 {[%emt 0:05:10]} N5f4 {[%emt 0:00:31]} 34. Bxf4 {[%emt 0:02:46]} Qxf4 {[%emt 0:00:27]} 35. Rg2 {[%emt 0:00:00]} Nxg5 {[%emt 0:00:48]} 36. Nxg5 {[%emt 0:00:00]} hxg5 {[%emt 0:00:02]} 37. Bb5 {[%emt 0:00:28]} Qxf6 {[%emt 0:00:22]} 38. Bxe8 {[%emt 0:00:11]} Rxe8 {[%emt 0:00:02]} 39. Rf1 {[%emt 0:00:57]} Qh8 {[%emt 0:01:35]} 40. Qf3 {[%emt 0:00:00]} Qh7 {[%emt 0:00:00]} 41. Qg4 {[%emt 0:07:41]} Ra8 {[%emt 0:09:27]} 42. Qd7 {[%emt 0:01:10]} g4 {[%emt 0:05:12]} 43. Rgf2 {[%emt 0:02:42]} g3 {[%emt 0:01:34]} 44. Qxf7+ {[%emt 0:00:07]} Qxf7 {[%emt 0:00:04]} 45. Rxf7 {[%emt 0:00:07]} g2+ {[%emt 0:00:21]} 46. Kxg2 {[%emt 0:00:06]} Rxa2+ {[%emt 0:00:06]} 47. R1f2 {[%emt 0:00:30]} Ra8 {[%emt 0:00:50]} 48. Rd7 {[%emt 0:00:12]} Kh8 {[%emt 0:00:57]} 49. Rf6 {[%emt 0:01:18]} Bg7 {[%emt 0:00:11]} 50. Rxg6 {[%emt 0:07:31]} Ra3 {[%emt 0:00:12]} 51. Rdxd6 {[%emt 0:00:00]} Re3 {[%emt 0:00:26]} 52. Rg4 {[%emt 0:00:00]} Re2+ {[%emt 0:00:15]} 53. Kg3 {[%emt 0:00:00]} Re3+ {[%emt 0:00:09]} 54. Kh4 {[%emt 0:00:00]} Re2 {[%emt 0:00:13]} 55. h3 {[%emt 0:00:00]} Re3 {[%emt 0:00:06]} 56. Re6 {[%emt 0:00:00]} Kg8 {[%emt 0:00:16]} 57. Rxe5 {[%emt 0:00:00]} Kf7 {[%emt 0:00:09]} 58. Rxg7+ {[%emt 0:00:00]} Kxg7 {[%emt 0:00:05]} 59. d6 {[%emt 0:00:00]} Kf6 {[%emt 0:00:07]} 60. Re8 {[%emt 0:00:00]} 1-0

[Event "Romanian Championship Open 2025"]
[Site "Craiova"]
[Date "2025.02.21"]
[Round "7.9"]
[White "Secheres, Adrian-Simion"]
[Black "Leu, Dragos Stefan"]
[Result "1/2-1/2"]
[Annotator "RC"]
[ECO "E11"]
[WhiteElo "2350"]
[BlackElo "2180"]
[PlyCount "55"]
[EventDate "2025.02.12"]
[EventType "swiss"]
[EventCountry "ROU"]
[SourceTitle "playchess.com"]
[Source "ChessBase"]
[SourceQuality "1"]
[TimeControl "40/5400+30:900+30"]

1. d4 {[%emt 0:01:48]} Nf6 {[%emt 0:00:10]} 2. Nf3 {[%emt 0:00:29]} e6 {[%emt 0:00:05]} 3. c4 {[%emt 0:00:42]} Bb4+ {[%emt 0:00:08]} 4. Bd2 {[%emt 0:00:22]} Qe7 {[%emt 0:00:09]} 5. g3 {[%emt 0:00:36]} Bxd2+ {[%emt 0:01:40]} 6. Qxd2 {[%emt 0:00:12]} d6 {[%emt 0:00:03]} 7. Bg2 {[%emt 0:01:15]} e5 {[%emt 0:01:19]} 8. Nc3 {[%emt 0:01:14]} O-O {[%emt 0:03:44]} 9. O-O {[%emt 0:00:43]} Re8 {[%emt 0:12:38]} 10. dxe5 {[%emt 0:14:55]} dxe5 {[%emt 0:00:02]} 11. Rfd1 {[%emt 0:00:09]} c6 {[%emt 0:12:11]} 12. a3 {[%emt 0:20:30]} a5 {[%emt 0:20:07]} 13. Na4 {[%emt 0:03:35]} Bf5 {[%emt 0:04:46]} 14. Nh4 {[%emt 0:06:56]} Be6 {[%emt 0:04:23]} 15. Qg5 {[%emt 0:14:08]} Nbd7 {[%emt 0:14:56]} 16. Nf5 {[%emt 0:08:46]} Bxf5 {[%emt 0:00:06]} 17. Qxf5 {[%emt 0:00:05]} Nc5 {[%emt 0:01:12]} 18. Qc2 {[%emt 0:02:18]} Nxa4 {[%emt 0:03:46]} 19. Qxa4 {[%emt 0:00:02]} Nd7 {[%emt 0:00:15]} 20. b4 {[%emt 0:05:31]} axb4 {[%emt 0:04:02]} 21. Qxb4 {[%emt 0:00:06]} Nc5 {[%emt 0:00:15]} 22. a4 {[%emt 0:00:58]} e4 {[%emt 0:01:07]} 23. e3 {[%emt 0:00:59]} Qe5 {[%emt 0:00:43]} 24. a5 {[%emt 0:02:53]} Rad8 {[%emt 0:04:09]} 25. a6 {[%emt 0:04:49]} bxa6 {[%emt 0:01:42]} 26. Qb6 {[%emt 0:00:07]} Nd3 {[%emt 0:03:28]} 27. Qxa6 {[%emt 0:04:47]} c5 {[%emt 0:04:02]} 28. Qa5 {[%emt 0:05:35]} 1/2-1/2

[Event "Romanian Championship Open 2025"]
[Site "Craiova"]
[Date "2025.02.21"]
[Round "7.10"]
[White "Nedelcu, Teodor-Cosmin"]
[Black "Toma, Iustin"]
[Result "1-0"]
[Annotator "RC"]
[ECO "A58"]
[WhiteElo "2320"]
[BlackElo "2118"]
[PlyCount "79"]
[EventDate "2025.02.12"]
[EventType "swiss"]
[EventCountry "ROU"]
[SourceTitle "playchess.com"]
[Source "ChessBase"]
[SourceQuality "1"]
[TimeControl "40/5400+30:900+30"]

1. d4 {[%emt 0:07:08]} Nf6 {[%emt 0:00:07]} 2. c4 {[%emt 0:00:36]} c5 {[%emt 0:00:06]} 3. d5 {[%emt 0:00:03]} b5 {[%emt 0:00:05]} 4. cxb5 {[%emt 0:01:45]} a6 {[%emt 0:00:07]} 5. bxa6 {[%emt 0:00:04]} e6 {[%emt 0:00:06]} 6. Nc3 {[%emt 0:01:50]} exd5 {[%emt 0:00:06]} 7. Nxd5 {[%emt 0:00:17]} Be7 {[%emt 0:00:05]} 8. Nxe7 {[%emt 0:02:00]} Qxe7 {[%emt 0:00:06]} 9. e3 {[%emt 0:00:08]} O-O {[%emt 0:00:06]} 10. Nf3 {[%emt 0:00:09]} Rxa6 {[%emt 0:00:20]} 11. Bxa6 {[%emt 0:10:57]} Bxa6 {[%emt 0:00:06]} 12. Ng1 {[%emt 0:00:26]} d5 {[%emt 0:01:22]} 13. Ne2 {[%emt 0:02:04]} Rd8 {[%emt 0:00:53]} 14. O-O {[%emt 0:02:54]} d4 {[%emt 0:00:28]} 15. exd4 {[%emt 0:09:27]} Bxe2 {[%emt 0:00:31]} 16. Re1 {[%emt 0:00:08]} Bxd1 {[%emt 0:00:06]} 17. Rxe7 {[%emt 0:00:06]} cxd4 {[%emt 0:00:10]} 18. Bd2 {[%emt 0:03:58]} Bc2 {[%emt 0:26:52]} 19. f3 {[%emt 0:00:19]} Nbd7 {[%emt 0:06:32]} 20. Rae1 {[%emt 0:02:47]} h6 {[%emt 0:00:42]} 21. g4 {[%emt 0:01:21]} Nf8 {[%emt 0:14:33]} 22. Rc7 {[%emt 0:05:38]} d3 {[%emt 0:14:21]} 23. Rc4 {[%emt 0:03:54]} Ne6 {[%emt 0:01:02]} 24. Kf2 {[%emt 0:05:03]} Rb8 {[%emt 0:07:55]} 25. Rb4 {[%emt 0:05:17]} Rc8 {[%emt 0:09:34]} 26. h4 {[%emt 0:05:37]} Nd5 {[%emt 0:03:08]} 27. Rb5 {[%emt 0:00:51]} Ndf4 {[%emt 0:01:37]} 28. Re4 {[%emt 0:06:50]} g5 {[%emt 0:06:05]} 29. hxg5 {[%emt 0:00:36]} hxg5 {[%emt 0:00:04]} 30. Reb4 {[%emt 0:01:51]} Ne2 {[%emt 0:05:48]} 31. Rb8 {[%emt 0:00:27]} Rxb8 {[%emt 0:00:06]} 32. Rxb8+ {[%emt 0:00:02]} Kh7 {[%emt 0:00:12]} 33. Rb7 {[%emt 0:02:08]} Kg6 {[%emt 0:00:09]} 34. Rd7 {[%emt 0:00:05]} N2d4 {[%emt 0:00:26]} 35. Ke3 {[%emt 0:01:52]} Nb5 {[%emt 0:02:32]} 36. a4 {[%emt 0:01:36]} Bxa4 {[%emt 0:00:47]} 37. Rxd3 {[%emt 0:00:05]} Nbc7 {[%emt 0:00:12]} 38. Kf2 {[%emt 0:02:39]} Bc6 {[%emt 0:00:43]} 39. Rd6 {[%emt 0:00:26]} Bd5 {[%emt 0:00:56]} 40. Ba5 {[%emt 0:00:00]} 1-0

[Event "Romanian Championship Open 2025"]
[Site "Craiova"]
[Date "2025.02.21"]
[Round "7.11"]
[White "Nastase, Robert-Paul"]
[Black "Filip, Andrei"]
[Result "0-1"]
[Annotator "RC"]
[ECO "C00"]
[WhiteElo "2259"]
[BlackElo "2320"]
[PlyCount "45"]
[EventDate "2025.02.12"]
[EventType "swiss"]
[EventCountry "ROU"]
[SourceTitle "playchess.com"]
[Source "ChessBase"]
[SourceQuality "1"]
[TimeControl "40/5400+30:900+30"]

1. e4 {[%emt 0:05:24]} e6 {[%emt 0:00:15]} 2. d3 {[%emt 0:00:53]} d5 {[%emt 0:00:25]} 3. Nc3 {[%emt 0:00:04]} Nf6 {[%emt 0:01:09]} 4. Bg5 {[%emt 0:02:51]} Be7 {[%emt 0:02:47]} 5. Nf3 {[%emt 0:05:13]} O-O {[%emt 0:02:13]} 6. Qd2 {[%emt 0:02:03]} c5 {[%emt 0:04:39]} 7. g3 {[%emt 0:05:21]} Nc6 {[%emt 0:04:30]} 8. exd5 {[%emt 0:01:03]} exd5 {[%emt 0:01:26]} 9. Bg2 {[%emt 0:00:07]} d4 {[%emt 0:02:14]} 10. Ne2 {[%emt 0:06:21]} h6 {[%emt 0:05:44]} 11. Bxf6 {[%emt 0:00:05]} Bxf6 {[%emt 0:00:10]} 12. O-O {[%emt 0:00:02]} Bf5 {[%emt 0:01:51]} 13. h3 {[%emt 0:04:31]} Qd7 {[%emt 0:02:50]} 14. g4 {[%emt 0:03:12]} Bh7 {[%emt 0:01:05]} 15. Nh2 {[%emt 0:04:04]} Rae8 {[%emt 0:03:23]} 16. Ng3 {[%emt 0:07:12]} Bd8 {[%emt 0:09:52]} 17. f4 {[%emt 0:10:31]} Re3 {[%emt 0:08:02]} 18. Rf3 {[%emt 0:01:12]} Rfe8 {[%emt 0:02:11]} 19. Qf2 {[%emt 0:08:30]} Ba5 {[%emt 0:03:06]} 20. Bf1 {[%emt 0:00:11]} Bc7 {[%emt 0:14:17]} 21. f5 {[%emt 0:03:03]} Qd6 {[%emt 0:03:10]} 22. Kg2 {[%emt 0:00:05]} Nb4 {[%emt 0:01:13]} 23. Rc1 {[%emt 0:01:05]} 0-1

[Event "Romanian Championship Open 2025"]
[Site "Craiova"]
[Date "2025.02.21"]
[Round "7.12"]
[White "Nisipeanu, Liviu-Dieter"]
[Black "Tanasie, Cosmin"]
[Result "1-0"]
[Annotator "TA"]
[ECO "A44"]
[WhiteElo "2596"]
[BlackElo "2198"]
[PlyCount "91"]
[EventDate "2025.02.12"]
[EventType "swiss"]
[EventCountry "ROU"]
[SourceTitle "playchess.com"]
[Source "ChessBase"]
[SourceQuality "1"]
[TimeControl "40/5400+30:900+30"]

{[%evp 9,91,73,80,78,79,73,120,102,120,121,154,142,147,149,170,181,175,154,154,152,147,144,146,147,154,133,147,124,141,143,143,139,189,199,212,214,218,222,254,250,289,281,288,277,279,284,314,302,284,264,423,413,406,403,373,340,476,452,567,577,563,554,601,585,596,583,710,710,808,829,833,796,752,797,832,846,835,826,814,854,872,853,773,678]} 1. d4 {[%emt 0:00:33]} c5 {[%emt 0:00:06]} 2. d5 {[%emt 0:00:05]} e5 {[%emt 0:00:04]} 3. e4 {[%emt 0:00:10]} d6 {[%emt 0:00:06]} 4. Ne2 {[%emt 0:00:06]} Be7 {[%emt 0:00:05]} 5. Nec3 {[%emt 0:00:06]} Nf6 {[%emt 0:00:07]} 6. Nd2 {[%emt 0:01:37][%cal Bb1d2,Bd2c4,Bc4e3][%mdl 32] A44: Semi-Benoni.} Nbd7 {[%emt 0:00:07]} 7. a4 {[%emt 0:00:11][%cal Ba2a4,Ba4a5][%mdl 32]} Nf8 {[%emt 0:00:13]} (7... O-O $142) 8. a5 {[%emt 0:02:46] White is better.} a6 {[%emt 0:01:25]} 9. Nc4 {[%emt 0:00:11]} Ng6 $146 {[%emt 0:00:12]} ({Predecessor:} 9... Rb8 10. h4 h5 11. g3 Ng6 12. Ra3 Bg4 13. Be2 Bxe2 14. Qxe2 Qd7 15. Bg5 Qg4 16. Bxf6 Qxe2+ 17. Kxe2 gxf6 {1-0 Kalinitschew,S (2496)-Richter,K (2088) Dortmund op-A 2003 (1)}) 10. g3 {[%emt 0:02:05]} O-O {[%emt 0:01:52]} 11. h4 {[%emt 0:00:43]} h5 {[%emt 0:02:35]} 12. Be2 {[%emt 0:06:24]} Bg4 {[%emt 0:01:53]} 13. Ne3 {[%emt 0:14:20]} Bxe2 {[%emt 0:02:25]} 14. Qxe2 {[%emt 0:00:06]} Re8 {[%emt 0:02:30]} 15. Nf5 {[%emt 0:02:59]} Nf8 {[%emt 0:03:29]} 16. f3 {[%emt 0:06:34] White is much more active.} g6 {[%emt 0:04:43]} 17. Nxe7+ {[%emt 0:01:19]} Qxe7 {[%emt 0:00:14]} 18. g4 {[%emt 0:03:43][%cal Bg3g4,Bg4g5][%mdl 32]} Kg7 {[%emt 0:13:30]} 19. Bg5 {[%emt 0:03:19]} N8h7 {[%emt 0:01:18]} 20. Bd2 {[%emt 0:00:08]} Rh8 {[%emt 0:00:48]} (20... Nf8 $16 {is a better defense.} 21. b3 N8d7) 21. Na4 $18 {[%emt 0:02:41][%cal Bc3a4,Ba4b6,Bb6c4][%mdl 32]} ({Much less strong is} 21. g5 Nd7 22. Nd1 b6 23. axb6 Rhb8 24. Rxa6 Nxb6) 21... Rad8 {[%emt 0:06:34]} 22. Nb6 {[%emt 0:00:56]} (22. g5 Nd7 23. b3 Ra8 $14) 22... Nf8 {[%emt 0:15:04]} 23. g5 {[%emt 0:05:43]} N6d7 {[%emt 0:00:08]} 24. Nc4 {[%emt 0:00:06]} Nh7 {[%emt 0:02:47]} 25. O-O-O {[%emt 0:02:02]} Rhe8 {[%emt 0:02:12]} 26. Rdf1 {[%emt 0:01:22]} Kg8 {[%emt 0:09:02]} 27. Rhg1 {[%emt 0:00:39]} Nhf8 {[%emt 0:00:41]} 28. Rf2 {[%emt 0:01:33]} Rb8 {[%emt 0:00:29]} 29. f4 {[%emt 0:06:00]} exf4 $2 {[%emt 0:01:27]} (29... b5) 30. Bxf4 {[%emt 0:00:10]} Qxe4 {[%emt 0:04:16]} 31. Qxe4 {[%emt 0:00:05]} Rxe4 {[%emt 0:00:01][%cal Be8e4,Be4a4,Ba4d4,Bd4d5][%mdl 32]} 32. Nxd6 {[%emt 0:00:08]} Ra4 {[%emt 0:09:39]} 33. Kb1 {[%emt 0:00:06] White is clearly winning. Repels Ra1+} (33. Bh2 Rxa5 34. Kb1 (34. Nxf7 Re8 $16) (34. Rxf7 Ra1+ 35. Kd2 Rxg1 $16) 34... Ra4 $18) 33... Rd4 {[%emt 0:03:33] [#]} 34. Nxf7 $1 {[%emt 0:01:49][%mdl 512]} Re8 {[%emt 0:01:14]} 35. Bd2 {[%emt 0:02:45]} Kh7 {[%emt 0:02:54]} 36. Bc3 {[%emt 0:06:04]} Rxd5 {[%emt 0:00:22] [#]} 37. Nd6 {[%emt 0:01:39][%mdl 512] Against Rf5} Re7 {[%emt 0:00:01]} (37... Ree5 38. Bxe5) 38. Nc8 {[%emt 0:00:08]} Ree5 {[%emt 0:02:17]} 39. Rf7+ {[%emt 0:01:35]} Kg8 {[%emt 0:00:08]} 40. Rgf1 {[%emt 0:00:00] Strongly threatening Ne7+.} Rd1+ {[%emt 0:00:00]} 41. Rxd1 {[%emt 0:00:10] White wants to mate with Rdf1.} Kxf7 {[%emt 0:01:25]} 42. Bxe5 {[%emt 0:01:32]} Nxe5 {[%emt 0:00:01]} 43. Nd6+ {[%emt 0:00:11]} Ke7 {[%emt 0:00:03]} 44. Nxb7 {[%emt 0:00:10]} Nfd7 {[%emt 0:00:19]} 45. Rd6 {[%emt 0:00:21]} Nb8 {[%emt 0:00:44]} 46. Rb6 {[%emt 0:00:23] Black got outplayed after the opening.   Weighted Error Value: White=0.02 (flawless) /Black=0.30  Mistake:       	---       	Black=3      Inaccurate:     	---       	Black=1      OK:         	White=23    	Black=8} 1-0

[Event "Romanian Championship Open 2025"]
[Site "Craiova"]
[Date "2025.02.21"]
[Round "7.13"]
[White "Parligras, Mircea-Emilian"]
[Black "Voiteanu, Gabriel"]
[Result "1-0"]
[Annotator "TA"]
[ECO "D12"]
[WhiteElo "2528"]
[BlackElo "2159"]
[PlyCount "79"]
[EventDate "2025.02.12"]
[EventType "swiss"]
[EventCountry "ROU"]
[SourceTitle "playchess.com"]
[Source "ChessBase"]
[SourceQuality "1"]
[TimeControl "40/5400+30:900+30"]

{[%evp 12,79,23,37,48,10,46,45,50,42,41,6,23,12,19,14,37,0,-1,-1,-6,-49,-25,-53,-48,-43,-39,-38,18,0,69,62,79,68,164,168,172,171,167,167,170,166,173,175,197,189,202,197,222,220,223,227,218,214,347,343,463,368,476,464,506,467,460,457,512,512,611,608,595,589]} 1. d4 {[%emt 0:00:04]} d5 {[%emt 0:00:09]} 2. c4 {[%emt 0:00:07]} c6 {[%emt 0:00:07]} 3. Nf3 {[%emt 0:00:14]} Nf6 {[%emt 0:00:06]} 4. e3 {[%emt 0:00:17]} Bf5 {[%emt 0:00:19][%cal Bc8f5,Bf5e4,Be4g6][%mdl 32]} 5. Nc3 {[%emt 0:00:10]} e6 {[%emt 0:00:22]} 6. Nh4 {[%emt 0:00:19]} Be4 {[%emt 0:00:20]} 7. f3 {[%emt 0:00:15]} Bg6 {[%emt 0:00:11] D12: Slav Defence: 3 Nf3 Nf6 4 e3 Bf5.} 8. Bd2 {[%emt 0:00:25]} Qc7 {[%emt 0:01:50]} 9. Rc1 {[%emt 0:07:31]} Be7 {[%emt 0:03:59] White is slightly better.} 10. g3 {[%emt 0:04:20]} Nbd7 $146 {[%emt 0:02:15]} (10... Qd7 11. c5 Nh5 12. Nxg6 hxg6 13. Kf2 Qd8 14. f4 Nd7 15. Bd3 f5 16. b4 Nhf6 {½-½ Pacher,M (2365)-Tejaswini,S (1966) Budapest Vezerkepzo IM New Year 2024 (5)}) 11. Qb3 {[%emt 0:00:47]} Qb6 {[%emt 0:04:50]} 12. Nxg6 {[%emt 0:01:51]} hxg6 {[%emt 0:04:06]} 13. Bd3 {[%emt 0:02:13]} O-O {[%emt 0:06:03]} 14. O-O {[%emt 0:04:09]} c5 {[%emt 0:13:48]} 15. Qxb6 {[%emt 0:16:50]} Nxb6 {[%emt 0:15:28]} 16. b3 {[%emt 0:03:24]} Rfd8 {[%emt 0:07:07] And now ...dxc4 would win.} 17. Ne2 {[%emt 0:01:00]} cxd4 {[%emt 0:15:11]} 18. exd4 {[%emt 0:00:42]} dxc4 {[%emt 0:00:42]} 19. bxc4 {[%emt 0:09:24]} Na4 {[%emt 0:00:09]} (19... e5 $15) 20. Rb1 {[%emt 0:09:45][%cal Bc1b1,Bb1b2,Bb2b3][%mdl 32]} Rd7 {[%emt 0:02:55]} (20... Bc5 $11 21. Bc2 Bxd4+ 22. Nxd4 Rxd4) 21. Rfd1 {[%emt 0:02:10]} Rc8 {[%emt 0:01:42] Black is now going downhill.} 22. c5 {[%emt 0:08:37]} Nxc5 {[%emt 0:09:37]} (22... a6 $14) 23. Bb5 $18 {[%emt 0:00:19][%cal Ob5d7] A strong pair of Bishops.} Rd5 {[%emt 0:00:13]} 24. dxc5 {[%emt 0:11:51]} Rcd8 {[%emt 0:01:03]} 25. Rb2 {[%emt 0:00:06]} Bxc5+ {[%emt 0:01:57]} 26. Kf1 $1 {[%emt 0:00:04]} Ba3 {[%emt 0:07:13]} 27. Rb3 {[%emt 0:00:22]} Bc5 {[%emt 0:00:17] [#]} 28. Ke1 {[%emt 0:00:14]} a6 {[%emt 0:00:43]} 29. Bc4 {[%emt 0:00:10]} Rh5 {[%emt 0:00:07] [#]} 30. h4 {[%emt 0:01:06]} ({Inferior is} 30. Rxb7 Rxh2 31. Nc3 (31. Bxa6 $2 {perishes.} Rh1+ $19) 31... Bd4 $11) 30... b5 {[%emt 0:00:22]} 31. Rd3 {[%emt 0:02:32]} Rxd3 {[%emt 0:01:29]} 32. Bxd3 {[%emt 0:00:06]} Nd5 {[%emt 0:00:53]} (32... Rd5 $142) 33. Rc1 {[%emt 0:01:24]} Bb6 {[%emt 0:00:38]} 34. Bg5 {[%emt 0:00:28]} Nb4 {[%emt 0:01:19]} 35. Bb1 {[%emt 0:00:20] White is clearly winning.} Rh8 {[%emt 0:00:00]} 36. Bd2 {[%emt 0:01:07]} Nd5 {[%emt 0:00:00]} 37. Rc6 {[%emt 0:01:36]} Kh7 {[%emt 0:00:23]} 38. Nf4 {[%emt 0:00:50] Black must now prevent Nxd5.} Rb8 {[%emt 0:00:37]} 39. Nxd5 {[%emt 0:00:20]} exd5 {[%emt 0:00:02]} 40. h5 {[%emt 0:00:00] Weighted Error Value: White=0.13 (very precise) /Black=0.33  Mistake:       	---       	Black=4      Inaccurate:     	White=5     	Black=2      OK:         	White=12    	Black=10     Best:        	White=2     	---        Strong:       	White=1     	---} 1-0

[Event "Romanian Championship Open 2025"]
[Site "Craiova"]
[Date "2025.02.21"]
[Round "7.14"]
[White "Manea, Alexandru"]
[Black "Ignat, Matei-Marius"]
[Result "1/2-1/2"]
[Annotator "RC"]
[ECO "C25"]
[WhiteElo "2272"]
[BlackElo "2137"]
[PlyCount "124"]
[EventDate "2025.02.12"]
[EventType "swiss"]
[EventCountry "ROU"]
[SourceTitle "playchess.com"]
[Source "ChessBase"]
[SourceQuality "1"]
[TimeControl "40/5400+30:900+30"]

1. e4 {[%emt 0:00:30]} e5 {[%emt 0:00:37]} 2. Nc3 {[%emt 0:00:08]} Nc6 {[%emt 0:00:26]} 3. g3 {[%emt 0:00:08]} Bc5 {[%emt 0:05:41]} 4. Bg2 {[%emt 0:00:35]} d6 {[%emt 0:00:08]} 5. Na4 {[%emt 0:00:18]} Nge7 {[%emt 0:01:32]} 6. Ne2 {[%emt 0:00:12]} Be6 {[%emt 0:04:37]} 7. d3 {[%emt 0:00:19]} f6 {[%emt 0:04:17]} 8. a3 {[%emt 0:05:58]} a5 {[%emt 0:01:44]} 9. Be3 {[%emt 0:24:13]} Bxe3 {[%emt 0:06:02]} 10. fxe3 {[%emt 0:00:03]} Qd7 {[%emt 0:04:25]} 11. c4 {[%emt 0:01:51]} Bh3 {[%emt 0:09:36]} 12. Bxh3 {[%emt 0:10:05]} Qxh3 {[%emt 0:00:16]} 13. Kd2 {[%emt 0:00:02]} Nd8 {[%emt 0:07:55]} 14. Qf1 {[%emt 0:00:40]} Qd7 {[%emt 0:00:36]} 15. Qd1 {[%emt 0:07:55]} b5 {[%emt 0:07:01]} 16. cxb5 {[%emt 0:00:15]} Qxb5 {[%emt 0:00:04]} 17. Qc2 {[%emt 0:00:05]} Ne6 {[%emt 0:05:49]} 18. Qc4 {[%emt 0:03:20]} Qxc4 {[%emt 0:07:29]} 19. dxc4 {[%emt 0:00:05]} h5 {[%emt 0:00:33]} 20. h4 {[%emt 0:01:03]} Kd7 {[%emt 0:05:50]} 21. Rhf1 {[%emt 0:05:24]} Rab8 {[%emt 0:02:42]} 22. Nec3 {[%emt 0:03:04]} Rh6 {[%emt 0:03:44]} 23. Rf3 {[%emt 0:02:33]} Rg6 {[%emt 0:04:39]} 24. Kc2 {[%emt 0:08:49]} Rg4 {[%emt 0:11:20]} 25. Rd1 {[%emt 0:00:24]} Nc8 {[%emt 0:00:26]} 26. Rd5 {[%emt 0:03:06]} Ra8 {[%emt 0:01:55]} 27. Rd2 {[%emt 0:08:47]} Rb8 {[%emt 0:02:28]} 28. Rd5 {[%emt 0:01:15]} Ra8 {[%emt 0:00:19]} 29. Rb5 {[%emt 0:05:46]} Kc6 {[%emt 0:02:11]} 30. Rd5 {[%emt 0:02:24]} Nb6 {[%emt 0:00:31]} 31. Nxb6 {[%emt 0:00:34]} Kxb6 {[%emt 0:00:26]} 32. b4 {[%emt 0:02:06]} axb4 {[%emt 0:00:23]} 33. axb4 {[%emt 0:00:02]} Kc6 {[%emt 0:00:34]} 34. Rd1 {[%emt 0:00:14]} Kb7 {[%emt 0:00:26]} 35. Kb2 {[%emt 0:01:00]} Nd8 {[%emt 0:00:33]} 36. Kb3 {[%emt 0:00:44]} Ne6 {[%emt 0:00:21]} 37. Kc2 {[%emt 0:01:32]} Nd8 {[%emt 0:00:50]} 38. Rg1 {[%emt 0:01:05]} Nc6 {[%emt 0:01:04]} 39. Kb3 {[%emt 0:00:16]} Rh8 {[%emt 0:00:00]} 40. Ra1 {[%emt 0:00:00]} Rh6 {[%emt 0:00:00]} 41. Rh1 {[%emt 0:02:02]} Rhg6 {[%emt 0:04:26]} 42. Rh3 {[%emt 0:00:16]} Nb8 {[%emt 0:00:34]} 43. Kc2 {[%emt 0:00:39]} Na6 {[%emt 0:00:36]} 44. Kb3 {[%emt 0:00:21]} c6 {[%emt 0:06:54]} 45. Ka3 {[%emt 0:00:26]} Nb8 {[%emt 0:00:20]} 46. Kb2 {[%emt 0:01:12]} Nd7 {[%emt 0:00:32]} 47. Kc2 {[%emt 0:00:08]} Nb6 {[%emt 0:00:12]} 48. Kd3 {[%emt 0:02:28]} Kc7 {[%emt 0:05:47]} 49. Rf5 {[%emt 0:00:38]} Rxg3 {[%emt 0:00:11]} 50. Rxg3 {[%emt 0:00:51]} Rxg3 {[%emt 0:00:03]} 51. Rxh5 {[%emt 0:00:03]} Nd7 {[%emt 0:00:17]} 52. Rh8 {[%emt 0:00:21]} Rh3 {[%emt 0:00:56]} 53. Rg8 {[%emt 0:00:06]} Rxh4 {[%emt 0:00:10]} 54. Rxg7 {[%emt 0:00:02]} Kd8 {[%emt 0:00:29]} 55. Rg8+ {[%emt 0:00:20]} Kc7 {[%emt 0:00:09]} 56. Rg7 {[%emt 0:00:38]} Kc8 {[%emt 0:00:47]} 57. Na4 {[%emt 0:01:45]} Rh1 {[%emt 0:00:57]} 58. b5 {[%emt 0:02:24]} cxb5 {[%emt 0:00:13]} 59. cxb5 {[%emt 0:00:02]} Ra1 {[%emt 0:00:41]} 60. Nc3 {[%emt 0:00:59]} Nc5+ {[%emt 0:00:25]} 61. Kc4 {[%emt 0:00:14]} Rc1 {[%emt 0:00:26]} 62. Kb4 {[%emt 0:02:30]} Nd3+ {[%emt 0:00:45]} 1/2-1/2